[Event "Titled Tuesday Blitz May 17 Early 2022"]
[White "Shimanov, Aleksandr"]
[Black "Seemann, Jakub"]
[WhiteFideId "4198603"]
[BlackFideId "21874697"]
[WhiteElo "2605"]
[BlackElo "2003"]
[Result "1-0"]
[Round "07"]
[TimeControl "180+1"]
[Date "2022.05.17"]
[WhiteClock "0:00:06"]
[BlackClock "0:00:06"]

1. e4 {[%clk 0:03:00]}  e6 {[%clk 0:02:54]} 2. d3 {[%clk 0:02:51]}  d5 {[%clk 0:02:54]} 3. Nd2 {[%clk 0:02:51]}  Nf6 {[%clk 0:02:54]} 4. Ngf3 {[%clk 0:02:51]}  c5 {[%clk 0:02:54]} 5. g3 {[%clk 0:02:50]}  dxe4 {[%clk 0:02:53]} 6. dxe4 {[%clk 0:02:51]}  Nc6 {[%clk 0:02:54]} 7. Bg2 {[%clk 0:02:48]}  Be7 {[%clk 0:02:51]} 8. O-O {[%clk 0:02:48]}  O-O {[%clk 0:02:51]} 9. e5 {[%clk 0:02:41]}  Nd5 {[%clk 0:02:48]} 10. c3 {[%clk 0:02:36]}  b6 {[%clk 0:02:45]} 11. Re1 {[%clk 0:02:36]}  Bb7 {[%clk 0:02:45]} 12. Qa4 {[%clk 0:02:30]}  Qc7 {[%clk 0:02:44]} 13. Qg4 {[%clk 0:02:28]}  Rad8 {[%clk 0:02:39]} 14. h4 {[%clk 0:02:21]}  Rfe8 {[%clk 0:02:36]} 15. h5 {[%clk 0:02:17]}  h6 {[%clk 0:02:34]} 16. Nf1 {[%clk 0:01:57]}  Kh8 {[%clk 0:02:29]} 17. Bd2 {[%clk 0:01:36]}  b5 {[%clk 0:02:27]} 18. Rad1 {[%clk 0:01:29]}  Bf8 {[%clk 0:02:26]} 19. Ne3 {[%clk 0:01:15]}  Nce7 {[%clk 0:02:25]} 20. Bc1 {[%clk 0:01:03]}  Nxe3 {[%clk 0:02:24]} 21. Bxe3 {[%clk 0:01:03]}  Nf5 {[%clk 0:02:18]} 22. Bf4 {[%clk 0:01:03]}  c4 {[%clk 0:02:15]} 23. Qh3 {[%clk 0:00:41]}  Rxd1 {[%clk 0:02:12]} 24. Rxd1 {[%clk 0:00:40]}  Rd8 {[%clk 0:02:13]} 25. Rxd8 {[%clk 0:00:24]}  Qxd8 {[%clk 0:02:13]} 26. g4 {[%clk 0:00:25]}  Qd1+ {[%clk 0:02:13]} 27. Kh2 {[%clk 0:00:25]}  Ne7 {[%clk 0:02:14]} 28. Nd4 {[%clk 0:00:26]}  Bxg2 {[%clk 0:01:58]} 29. Kxg2 {[%clk 0:00:25]}  Nd5 {[%clk 0:01:58]} 30. Bh2 {[%clk 0:00:26]}  a6 {[%clk 0:01:54]} 31. Qf3 {[%clk 0:00:25]}  Qxf3+ {[%clk 0:01:31]} 32. Kxf3 {[%clk 0:00:26]}  Bc5 {[%clk 0:01:28]} 33. Ne2 {[%clk 0:00:22]}  Kg8 {[%clk 0:01:24]} 34. Bg3 {[%clk 0:00:22]}  Kf8 {[%clk 0:01:24]} 35. Ke4 {[%clk 0:00:23]}  Ke7 {[%clk 0:01:21]} 36. f4 {[%clk 0:00:22]}  Kd7 {[%clk 0:01:21]} 37. f5 {[%clk 0:00:21]}  Kc6 {[%clk 0:01:13]} 38. Nf4 {[%clk 0:00:19]}  Nc7 {[%clk 0:00:58]} 39. fxe6 {[%clk 0:00:16]}  Nxe6 {[%clk 0:00:52]} 40. Nxe6 {[%clk 0:00:10]}  fxe6 {[%clk 0:00:52]} 41. Bh4 {[%clk 0:00:11]}  Kd7 {[%clk 0:00:49]} 42. g5 {[%clk 0:00:11]}  hxg5 {[%clk 0:00:25]} 43. Bxg5 {[%clk 0:00:12]}  Ke8 {[%clk 0:00:25]} 44. Bd2 {[%clk 0:00:05]}  Ke7 {[%clk 0:00:22]} 45. Bg5+ {[%clk 0:00:05]}  Kf7 {[%clk 0:00:21]} 46. Bh4 {[%clk 0:00:06]}  Ke8 {[%clk 0:00:18]} 47. Be1 {[%clk 0:00:03]}  Kd7 {[%clk 0:00:18]} 48. Kf4 {[%clk 0:00:04]}  Ke8 {[%clk 0:00:17]} 49. Bh4 {[%clk 0:00:04]}  b4 {[%clk 0:00:14]} 50. cxb4 {[%clk 0:00:04]}  Bxb4 {[%clk 0:00:14]} 51. Ke4 {[%clk 0:00:04]}  c3 {[%clk 0:00:15]} 52. bxc3 {[%clk 0:00:05]}  Bxc3 {[%clk 0:00:16]} 53. Bg3 {[%clk 0:00:05]}  Kd7 {[%clk 0:00:16]} 54. Bf4 {[%clk 0:00:05]}  Kc6 {[%clk 0:00:16]} 55. Bg5 {[%clk 0:00:05]}  Kb5 {[%clk 0:00:15]} 56. Be7 {[%clk 0:00:05]}  Bd2 {[%clk 0:00:13]} 57. Bf8 {[%clk 0:00:06]}  Bh6 {[%clk 0:00:13]} 58. Kd4 {[%clk 0:00:06]}  a5 {[%clk 0:00:10]} 59. a3 {[%clk 0:00:05]}  Ka4 {[%clk 0:00:07]} 60. Kc4 {[%clk 0:00:03]}  Bf4 {[%clk 0:00:03]} 61. Bxg7 {[%clk 0:00:03]}  Kxa3 {[%clk 0:00:04]} 62. h6 {[%clk 0:00:02]}  Bxh6 {[%clk 0:00:04]} 63. Bxh6 {[%clk 0:00:03]}  Kb2 {[%clk 0:00:05]} 64. Bf8 {[%clk 0:00:03]}  a4 {[%clk 0:00:05]} 65. Kb5 {[%clk 0:00:03]}  Kc3 {[%clk 0:00:03]} 66. Kxa4 {[%clk 0:00:03]}  Kd4 {[%clk 0:00:04]} 67. Bd6 {[%clk 0:00:03]}  Kd5 {[%clk 0:00:05]} 68. Kb5 {[%clk 0:00:04]}  Ke4 {[%clk 0:00:05]} 69. Kc6 {[%clk 0:00:05]}  Kf5 {[%clk 0:00:06]} 70. Kd7 {[%clk 0:00:06]} 1-0


[Site "https://www.chess.com"]

[Event "Titled Tuesday Blitz May 17 Early 2022"]
[White "Svane, Rasmus"]
[Black "Seo, Jung Min"]
[WhiteFideId "4657101"]
[BlackFideId "1734687"]
[WhiteElo "2674"]
[BlackElo "2401"]
[Result "1-0"]
[Round "07"]
[TimeControl "180+1"]
[Date "2022.05.17"]
[WhiteClock "0:00:08"]
[BlackClock "0:00:04"]

1. Nf3 {[%clk 0:03:00]}  d5 {[%clk 0:02:59]} 2. g3 {[%clk 0:03:01]}  Nf6 {[%clk 0:02:59]} 3. Bg2 {[%clk 0:03:01]}  Bg4 {[%clk 0:02:57]} 4. O-O {[%clk 0:03:01]}  Nbd7 {[%clk 0:02:56]} 5. h3 {[%clk 0:03:01]}  Bxf3 {[%clk 0:02:55]} 6. Bxf3 {[%clk 0:03:02]}  e5 {[%clk 0:02:53]} 7. d3 {[%clk 0:03:03]}  Bd6 {[%clk 0:02:52]} 8. Nc3 {[%clk 0:03:03]}  c6 {[%clk 0:02:52]} 9. e4 {[%clk 0:03:03]}  dxe4 {[%clk 0:02:52]} 10. Nxe4 {[%clk 0:03:04]}  Nxe4 {[%clk 0:02:52]} 11. dxe4 {[%clk 0:03:05]}  Qe7 {[%clk 0:02:51]} 12. a4 {[%clk 0:03:04]}  O-O {[%clk 0:02:50]} 13. Qe2 {[%clk 0:03:04]}  Rfd8 {[%clk 0:02:50]} 14. h4 {[%clk 0:03:04]}  a5 {[%clk 0:02:48]} 15. Bg5 {[%clk 0:03:03]}  Nf6 {[%clk 0:02:44]} 16. Rfd1 {[%clk 0:03:01]}  h6 {[%clk 0:02:42]} 17. Bd2 {[%clk 0:03:02]}  Bb4 {[%clk 0:02:42]} 18. c3 {[%clk 0:03:02]}  Bc5 {[%clk 0:02:42]} 19. Kg2 {[%clk 0:03:02]}  Rd7 {[%clk 0:02:36]} 20. Qc4 {[%clk 0:02:56]}  Rad8 {[%clk 0:02:34]} 21. Be1 {[%clk 0:02:56]}  Rxd1 {[%clk 0:02:33]} 22. Rxd1 {[%clk 0:02:56]}  Rxd1 {[%clk 0:02:33]} 23. Bxd1 {[%clk 0:02:57]}  Nd7 {[%clk 0:02:30]} 24. Bg4 {[%clk 0:02:46]}  Nf6 {[%clk 0:02:20]} 25. Bc8 {[%clk 0:02:33]}  Bb6 {[%clk 0:02:17]} 26. Bf5 {[%clk 0:02:16]}  Kf8 {[%clk 0:02:13]} 27. Qd3 {[%clk 0:02:06]}  Qd8 {[%clk 0:02:07]} 28. Qxd8+ {[%clk 0:02:02]}  Bxd8 {[%clk 0:02:07]} 29. Bc8 {[%clk 0:01:58]}  b6 {[%clk 0:01:59]} 30. Bb7 {[%clk 0:01:59]}  Nxe4 {[%clk 0:01:45]} 31. Bxc6 {[%clk 0:01:57]}  Nc5 {[%clk 0:01:45]} 32. Bd2 {[%clk 0:01:50]}  Ke7 {[%clk 0:01:39]} 33. b4 {[%clk 0:01:47]}  Nb3 {[%clk 0:01:36]} 34. Be3 {[%clk 0:01:41]}  axb4 {[%clk 0:01:35]} 35. cxb4 {[%clk 0:01:42]}  Kd6 {[%clk 0:01:35]} 36. Be8 {[%clk 0:01:41]}  f5 {[%clk 0:01:30]} 37. f4 {[%clk 0:01:38]}  Nd4 {[%clk 0:01:25]} 38. fxe5+ {[%clk 0:01:28]}  Kxe5 {[%clk 0:01:25]} 39. Bf4+ {[%clk 0:01:20]}  Kf6 {[%clk 0:01:25]} 40. Bd6 {[%clk 0:01:02]}  g5 {[%clk 0:01:15]} 41. h5 {[%clk 0:01:02]}  Be7 {[%clk 0:01:06]} 42. Bc7 {[%clk 0:01:01]}  Bxb4 {[%clk 0:01:04]} 43. Bxb6 {[%clk 0:01:01]}  Nb3 {[%clk 0:01:04]} 44. Bb5 {[%clk 0:00:48]}  Ba5 {[%clk 0:01:03]} 45. Ba7 {[%clk 0:00:46]}  Nd2 {[%clk 0:00:57]} 46. Bd4+ {[%clk 0:00:46]}  Kf7 {[%clk 0:00:56]} 47. Bd3 {[%clk 0:00:42]}  f4 {[%clk 0:00:52]} 48. gxf4 {[%clk 0:00:40]}  gxf4 {[%clk 0:00:53]} 49. Be5 {[%clk 0:00:35]}  f3+ {[%clk 0:00:46]} 50. Kg3 {[%clk 0:00:35]}  Kg8 {[%clk 0:00:42]} 51. Bf4 {[%clk 0:00:30]}  Kg7 {[%clk 0:00:41]} 52. Bc2 {[%clk 0:00:25]}  Bb4 {[%clk 0:00:35]} 53. Bd1 {[%clk 0:00:24]}  Ne4+ {[%clk 0:00:22]} 54. Kxf3 {[%clk 0:00:24]}  Nf6 {[%clk 0:00:23]} 55. Kg2 {[%clk 0:00:21]}  Nd5 {[%clk 0:00:11]} 56. Be5+ {[%clk 0:00:19]}  Nf6 {[%clk 0:00:10]} 57. Kf3 {[%clk 0:00:16]}  Kf7 {[%clk 0:00:10]} 58. Kf2 {[%clk 0:00:12]}  Ke6 {[%clk 0:00:08]} 59. Bf4 {[%clk 0:00:12]}  Kf5 {[%clk 0:00:04]} 60. Bxh6 {[%clk 0:00:12]}  Ng4+ {[%clk 0:00:05]} 61. Bxg4+ {[%clk 0:00:10]}  Kxg4 {[%clk 0:00:06]} 62. Ke2 {[%clk 0:00:07]}  Kxh5 {[%clk 0:00:06]} 63. Bd2 {[%clk 0:00:07]}  Bc5 {[%clk 0:00:07]} 64. a5 {[%clk 0:00:06]}  Kg4 {[%clk 0:00:07]} 65. Kd3 {[%clk 0:00:06]}  Kf5 {[%clk 0:00:07]} 66. Kc4 {[%clk 0:00:07]}  Bf2 {[%clk 0:00:07]} 67. Kd5 {[%clk 0:00:07]}  Kf6 {[%clk 0:00:07]} 68. a6 {[%clk 0:00:07]}  Ke7 {[%clk 0:00:06]} 69. Kc6 {[%clk 0:00:07]}  Kd8 {[%clk 0:00:06]} 70. Kb7 {[%clk 0:00:08]}  Kd7 {[%clk 0:00:05]} 71. Ba5 {[%clk 0:00:07]}  Be3 {[%clk 0:00:03]} 72. Bb6 {[%clk 0:00:06]}  Bxb6 {[%clk 0:00:04]} 73. Kxb6 {[%clk 0:00:07]}  Kc8 {[%clk 0:00:04]} 74. a7 {[%clk 0:00:08]} 1-0


[Site "https://www.chess.com"]

[Event "Titled Tuesday Blitz May 17 Early 2022"]
[White "Wagh Suyog"]
[Black "Oparin, Grigoriy"]
[WhiteFideId "25071688"]
[BlackFideId "24125890"]
[WhiteElo "2181"]
[BlackElo "2665"]
[Result "1-0"]
[Round "07"]
[TimeControl "180+1"]
[Date "2022.05.17"]
[WhiteClock "0:01:33"]
[BlackClock "0:00:13"]

1. e4 {[%clk 0:03:00]}  c6 {[%clk 0:03:00]} 2. d4 {[%clk 0:02:59]}  d5 {[%clk 0:03:01]} 3. e5 {[%clk 0:02:59]}  Bf5 {[%clk 0:03:00]} 4. h4 {[%clk 0:02:59]}  Qc8 {[%clk 0:02:55]} 5. Be2 {[%clk 0:02:52]}  h6 {[%clk 0:02:54]} 6. h5 {[%clk 0:02:50]}  e6 {[%clk 0:02:51]} 7. c4 {[%clk 0:02:49]}  Bb4+ {[%clk 0:02:46]} 8. Nc3 {[%clk 0:02:49]}  dxc4 {[%clk 0:02:43]} 9. Bxc4 {[%clk 0:02:47]}  Ne7 {[%clk 0:02:41]} 10. Ne2 {[%clk 0:02:47]}  O-O {[%clk 0:02:41]} 11. a3 {[%clk 0:02:46]}  Bxc3+ {[%clk 0:02:38]} 12. bxc3 {[%clk 0:02:44]}  c5 {[%clk 0:02:38]} 13. Ba2 {[%clk 0:02:43]}  Rd8 {[%clk 0:02:37]} 14. Be3 {[%clk 0:02:38]}  Nbc6 {[%clk 0:02:37]} 15. Qc1 {[%clk 0:02:30]}  Bh7 {[%clk 0:02:13]} 16. g4 {[%clk 0:02:28]}  Nd5 {[%clk 0:01:49]} 17. g5 {[%clk 0:02:27]}  hxg5 {[%clk 0:01:01]} 18. Bxg5 {[%clk 0:02:24]}  f6 {[%clk 0:00:59]} 19. exf6 {[%clk 0:02:24]}  gxf6 {[%clk 0:00:59]} 20. Bh4 {[%clk 0:01:41]}  Rf8 {[%clk 0:00:17]} 21. Qh6 {[%clk 0:01:38]}  Kh8 {[%clk 0:00:14]} 22. Bxd5 {[%clk 0:01:36]}  Qd8 {[%clk 0:00:14]} 23. Be4 {[%clk 0:01:33]}  Rf7 {[%clk 0:00:13]} 1-0


[Site "https://www.chess.com"]

[Event "Titled Tuesday Blitz May 17 Early 2022"]
[White "Xu, Yi"]
[Black "Zhigalko, Sergei"]
[WhiteFideId "8605564"]
[BlackFideId "13502956"]
[WhiteElo "2471"]
[BlackElo "2662"]
[Result "1-0"]
[Round "07"]
[TimeControl "180+1"]
[Date "2022.05.17"]
[WhiteClock "0:00:05"]
[BlackClock "0:00:03"]

1. e4 {[%clk 0:03:00]}  c5 {[%clk 0:02:59]} 2. Nf3 {[%clk 0:03:01]}  Nc6 {[%clk 0:03:00]} 3. Bb5 {[%clk 0:03:01]}  Nf6 {[%clk 0:03:00]} 4. Nc3 {[%clk 0:03:00]}  Qc7 {[%clk 0:03:00]} 5. O-O {[%clk 0:02:59]}  Nd4 {[%clk 0:02:59]} 6. Re1 {[%clk 0:02:57]}  a6 {[%clk 0:03:00]} 7. Bc4 {[%clk 0:02:54]}  d6 {[%clk 0:02:56]} 8. Nd5 {[%clk 0:02:45]}  Nxd5 {[%clk 0:02:56]} 9. exd5 {[%clk 0:02:44]}  g6 {[%clk 0:02:55]} 10. Nxd4 {[%clk 0:02:43]}  cxd4 {[%clk 0:02:56]} 11. d3 {[%clk 0:02:43]}  h6 {[%clk 0:02:56]} 12. a4 {[%clk 0:02:42]}  Bg7 {[%clk 0:02:53]} 13. a5 {[%clk 0:02:43]}  O-O {[%clk 0:02:53]} 14. b4 {[%clk 0:02:36]}  h5 {[%clk 0:02:49]} 15. Bg5 {[%clk 0:02:30]}  Re8 {[%clk 0:02:48]} 16. Qb1 {[%clk 0:02:27]}  e5 {[%clk 0:02:39]} 17. b5 {[%clk 0:02:18]}  Rb8 {[%clk 0:01:04]} 18. Qb4 {[%clk 0:01:57]}  Bd7 {[%clk 0:01:02]} 19. b6 {[%clk 0:01:40]}  Qc5 {[%clk 0:01:02]} 20. Qxc5 {[%clk 0:01:40]}  dxc5 {[%clk 0:01:02]} 21. f4 {[%clk 0:01:40]}  f6 {[%clk 0:00:50]} 22. fxe5 {[%clk 0:01:31]}  fxg5 {[%clk 0:00:48]} 23. e6 {[%clk 0:01:31]}  Bb5 {[%clk 0:00:46]} 24. Bxb5 {[%clk 0:01:14]}  axb5 {[%clk 0:00:46]} 25. d6 {[%clk 0:01:15]}  Bf6 {[%clk 0:00:36]} 26. a6 {[%clk 0:01:13]}  bxa6 {[%clk 0:00:21]} 27. Rxa6 {[%clk 0:01:12]}  Rb7 {[%clk 0:00:05]} 28. d7 {[%clk 0:00:51]}  Rd8 {[%clk 0:00:01]} 29. e7 {[%clk 0:00:38]}  Bxe7 {[%clk 0:00:02]} 30. Rxe7 {[%clk 0:00:38]}  Kf8 {[%clk 0:00:03]} 31. Re5 {[%clk 0:00:20]}  Rdxd7 {[%clk 0:00:01]} 32. Rxc5 {[%clk 0:00:21]}  b4 {[%clk 0:00:01]} 33. Rxg5 {[%clk 0:00:20]}  Rd6 {[%clk 0:00:01]} 34. Rb5 {[%clk 0:00:20]}  Rc6 {[%clk 0:00:01]} 35. Rxb4 {[%clk 0:00:20]}  Ke8 {[%clk 0:00:01]} 36. Rxd4 {[%clk 0:00:20]}  Rcxb6 {[%clk 0:00:01]} 37. Rxb6 {[%clk 0:00:20]}  Rxb6 {[%clk 0:00:02]} 38. Kf2 {[%clk 0:00:20]}  Kf7 {[%clk 0:00:03]} 39. Ke3 {[%clk 0:00:20]}  Kf6 {[%clk 0:00:03]} 40. Rf4+ {[%clk 0:00:20]}  Ke5 {[%clk 0:00:03]} 41. Re4+ {[%clk 0:00:21]}  Kd5 {[%clk 0:00:04]} 42. c4+ {[%clk 0:00:21]}  Kd6 {[%clk 0:00:04]} 43. Rf4 {[%clk 0:00:16]}  Ke5 {[%clk 0:00:04]} 44. d4+ {[%clk 0:00:16]}  Ke6 {[%clk 0:00:05]} 45. Ke4 {[%clk 0:00:16]}  Rb2 {[%clk 0:00:05]} 46. Kf3 {[%clk 0:00:14]}  Rc2 {[%clk 0:00:04]} 47. d5+ {[%clk 0:00:10]}  Ke5 {[%clk 0:00:05]} 48. Re4+ {[%clk 0:00:10]}  Kf5 {[%clk 0:00:06]} 49. Rd4 {[%clk 0:00:09]}  Ke5 {[%clk 0:00:06]} 50. d6 {[%clk 0:00:05]}  Kxd4 {[%clk 0:00:01]} 51. d7 {[%clk 0:00:05]}  Rc3+ {[%clk 0:00:01]} 52. Kf4 {[%clk 0:00:04]}  g5+ {[%clk 0:00:01]} 53. Kxg5 {[%clk 0:00:04]}  Kxc4 {[%clk 0:00:02]} 54. d8=Q {[%clk 0:00:04]}  Rd3 {[%clk 0:00:03]} 55. Qxd3+ {[%clk 0:00:04]}  Kxd3 {[%clk 0:00:03]} 56. Kxh5 {[%clk 0:00:05]} 1-0


[Site "https://www.chess.com"]

[Event "Titled Tuesday Blitz May 17 Early 2022"]
[White "Aakanksha Hagawane"]
[Black "Jarovinsky, Alexey"]
[WhiteFideId "25014510"]
[BlackFideId "14115131"]
[WhiteElo "1971"]
[BlackElo "2446"]
[Result "0-1"]
[Round "08"]
[TimeControl "180+1"]
[Date "2022.05.17"]
[WhiteClock "0:00:26"]
[BlackClock "0:00:35"]

1. e4 {[%clk 0:03:00]}  Nc6 {[%clk 0:03:00]} 2. d4 {[%clk 0:03:00]}  d5 {[%clk 0:03:00]} 3. e5 {[%clk 0:02:59]}  Bf5 {[%clk 0:02:58]} 4. c3 {[%clk 0:02:56]}  f6 {[%clk 0:02:58]} 5. f4 {[%clk 0:02:55]}  e6 {[%clk 0:02:55]} 6. Nf3 {[%clk 0:02:53]}  Nh6 {[%clk 0:02:52]} 7. Bd3 {[%clk 0:02:49]}  Bxd3 {[%clk 0:02:51]} 8. Qxd3 {[%clk 0:02:50]}  Be7 {[%clk 0:02:40]} 9. Be3 {[%clk 0:02:46]}  O-O {[%clk 0:02:29]} 10. Nbd2 {[%clk 0:02:40]}  a5 {[%clk 0:02:14]} 11. O-O-O {[%clk 0:02:32]}  a4 {[%clk 0:02:09]} 12. h3 {[%clk 0:02:32]}  fxe5 {[%clk 0:01:49]} 13. fxe5 {[%clk 0:02:15]}  Nf5 {[%clk 0:01:45]} 14. Bf2 {[%clk 0:01:59]}  Na5 {[%clk 0:01:39]} 15. g4 {[%clk 0:01:47]}  Nh4 {[%clk 0:01:39]} 16. Bxh4 {[%clk 0:01:44]}  Bxh4 {[%clk 0:01:40]} 17. Nxh4 {[%clk 0:01:44]}  Qxh4 {[%clk 0:01:39]} 18. Rhf1 {[%clk 0:01:36]}  c6 {[%clk 0:01:34]} 19. b3 {[%clk 0:01:13]}  axb3 {[%clk 0:01:25]} 20. axb3 {[%clk 0:01:13]}  Qe7 {[%clk 0:01:09]} 21. b4 {[%clk 0:01:00]}  b5 {[%clk 0:00:54]} 22. Kb2 {[%clk 0:00:43]}  Rxf1 {[%clk 0:00:46]} 23. Rxf1 {[%clk 0:00:42]}  Nc4+ {[%clk 0:00:45]} 24. Nxc4 {[%clk 0:00:42]}  bxc4 {[%clk 0:00:42]} 25. Qc2 {[%clk 0:00:27]}  Qa7 {[%clk 0:00:39]} 26. Kc1 {[%clk 0:00:26]}  Qa1+ {[%clk 0:00:36]} 27. Kd2 {[%clk 0:00:26]}  Qxf1 {[%clk 0:00:35]} 0-1


[Site "https://www.chess.com"]

[Event "Titled Tuesday Blitz May 17 Early 2022"]
[White "Andreikin, Dmitry"]
[Black "Vokhidov, Shamsiddin"]
[WhiteFideId "4158814"]
[BlackFideId "14204223"]
[WhiteElo "2736"]
[BlackElo "2611"]
[Result "1-0"]
[Round "08"]
[TimeControl "180+1"]
[Date "2022.05.17"]
[WhiteClock "0:01:59"]
[BlackClock "0:01:27"]

1. d4 {[%clk 0:03:00]}  Nf6 {[%clk 0:03:00]} 2. c4 {[%clk 0:03:00]}  e6 {[%clk 0:03:00]} 3. Nf3 {[%clk 0:03:00]}  d5 {[%clk 0:03:00]} 4. g3 {[%clk 0:03:00]}  dxc4 {[%clk 0:02:58]} 5. Bg2 {[%clk 0:03:00]}  a6 {[%clk 0:02:58]} 6. O-O {[%clk 0:03:00]}  Nc6 {[%clk 0:02:59]} 7. e3 {[%clk 0:02:57]}  Nd7 {[%clk 0:02:56]} 8. Nfd2 {[%clk 0:02:42]}  Nb6 {[%clk 0:02:55]} 9. Qe2 {[%clk 0:02:35]}  e5 {[%clk 0:02:55]} 10. Nc3 {[%clk 0:02:29]}  exd4 {[%clk 0:02:53]} 11. exd4+ {[%clk 0:02:29]}  Be7 {[%clk 0:02:54]} 12. d5 {[%clk 0:02:26]}  Nd4 {[%clk 0:02:49]} 13. Qe4 {[%clk 0:02:09]}  c5 {[%clk 0:02:28]} 14. dxc6 {[%clk 0:02:06]}  Bf5 {[%clk 0:02:03]} 15. c7 {[%clk 0:02:06]}  Qc8 {[%clk 0:01:44]} 16. Qxd4 {[%clk 0:02:05]}  Qxc7 {[%clk 0:01:40]} 17. Qxg7 {[%clk 0:02:02]}  O-O-O {[%clk 0:01:40]} 18. Nde4 {[%clk 0:02:01]}  Bg6 {[%clk 0:01:27]} 19. Bf4 {[%clk 0:01:59]} 1-0


[Site "https://www.chess.com"]

[Event "Titled Tuesday Blitz May 17 Early 2022"]
[White "Antipov, Mikhail Al."]
[Black "Beerdsen, Thomas"]
[WhiteFideId "4107012"]
[BlackFideId "1030108"]
[WhiteElo "2512"]
[BlackElo "2585"]
[Result "1-0"]
[Round "08"]
[TimeControl "180+1"]
[Date "2022.05.17"]
[WhiteClock "0:00:01"]
[BlackClock "0:00:04"]

1. e4 {[%clk 0:02:52]}  e5 {[%clk 0:02:59]} 2. Nf3 {[%clk 0:02:53]}  Nc6 {[%clk 0:02:59]} 3. Bc4 {[%clk 0:02:53]}  f5 {[%clk 0:02:59]} 4. d3 {[%clk 0:02:52]}  Nf6 {[%clk 0:02:59]} 5. O-O {[%clk 0:02:44]}  Bc5 {[%clk 0:02:56]} 6. Nc3 {[%clk 0:02:39]}  fxe4 {[%clk 0:02:54]} 7. dxe4 {[%clk 0:02:37]}  d6 {[%clk 0:02:53]} 8. Ng5 {[%clk 0:02:22]}  Qe7 {[%clk 0:02:35]} 9. Bf7+ {[%clk 0:02:19]}  Kd8 {[%clk 0:02:29]} 10. Bc4 {[%clk 0:02:02]}  Rf8 {[%clk 0:02:18]} 11. Nd5 {[%clk 0:01:56]}  Nxd5 {[%clk 0:02:12]} 12. exd5 {[%clk 0:01:56]}  Nd4 {[%clk 0:02:01]} 13. Nxh7 {[%clk 0:01:46]}  Rf5 {[%clk 0:01:49]} 14. c3 {[%clk 0:01:40]}  Nf3+ {[%clk 0:01:49]} 15. gxf3 {[%clk 0:01:37]}  Qh4 {[%clk 0:01:50]} 16. Bd3 {[%clk 0:01:25]}  Qxh7 {[%clk 0:01:31]} 17. Kh1 {[%clk 0:01:09]}  g6 {[%clk 0:01:08]} 18. Bxf5 {[%clk 0:01:06]}  Bxf5 {[%clk 0:01:09]} 19. Be3 {[%clk 0:00:53]}  Ke7 {[%clk 0:01:01]} 20. Rg1 {[%clk 0:00:43]}  Rh8 {[%clk 0:00:49]} 21. Rg2 {[%clk 0:00:43]}  Bb6 {[%clk 0:00:43]} 22. Qg1 {[%clk 0:00:36]}  e4 {[%clk 0:00:39]} 23. Re1 {[%clk 0:00:32]}  Kd7 {[%clk 0:00:35]} 24. Bxb6 {[%clk 0:00:15]}  exf3 {[%clk 0:00:33]} 25. Rg3 {[%clk 0:00:15]}  axb6 {[%clk 0:00:32]} 26. Rxf3 {[%clk 0:00:15]}  Qh4 {[%clk 0:00:30]} 27. Rfe3 {[%clk 0:00:14]}  Kd8 {[%clk 0:00:10]} 28. b3 {[%clk 0:00:12]}  Qf6 {[%clk 0:00:10]} 29. Qg3 {[%clk 0:00:10]}  g5 {[%clk 0:00:10]} 30. Kg1 {[%clk 0:00:08]}  Bd7 {[%clk 0:00:09]} 31. Rf3 {[%clk 0:00:07]}  Qg7 {[%clk 0:00:09]} 32. Rfe3 {[%clk 0:00:07]}  g4 {[%clk 0:00:10]} 33. Re7 {[%clk 0:00:07]}  Qf6 {[%clk 0:00:10]} 34. Qe3 {[%clk 0:00:05]}  Rf8 {[%clk 0:00:08]} 35. c4 {[%clk 0:00:04]}  Kc8 {[%clk 0:00:07]} 36. Rh7 {[%clk 0:00:03]}  b5 {[%clk 0:00:06]} 37. cxb5 {[%clk 0:00:02]}  Bxb5 {[%clk 0:00:05]} 38. Qa7 {[%clk 0:00:01]}  Kd8 {[%clk 0:00:04]} 39. Qb8# {[%clk 0:00:01]} 1-0


[Site "https://www.chess.com"]

[Event "Titled Tuesday Blitz May 17 Early 2022"]
[White "Bachmann, Axel"]
[Black "Jumabayev, Rinat"]
[WhiteFideId "3700488"]
[BlackFideId "13702661"]
[WhiteElo "2587"]
[BlackElo "2561"]
[Result "1-0"]
[Round "08"]
[TimeControl "180+1"]
[Date "2022.05.17"]
[WhiteClock "0:01:16"]
[BlackClock "0:00:26"]

1. e4 {[%clk 0:02:58]}  e6 {[%clk 0:03:00]} 2. Qe2 {[%clk 0:02:58]}  d5 {[%clk 0:03:01]} 3. exd5 {[%clk 0:02:57]}  Qxd5 {[%clk 0:03:02]} 4. Nc3 {[%clk 0:02:57]}  Qd8 {[%clk 0:03:02]} 5. g3 {[%clk 0:02:56]}  c5 {[%clk 0:03:03]} 6. Bg2 {[%clk 0:02:57]}  Nf6 {[%clk 0:03:02]} 7. Nf3 {[%clk 0:02:56]}  Nc6 {[%clk 0:03:03]} 8. O-O {[%clk 0:02:55]}  Be7 {[%clk 0:03:04]} 9. d3 {[%clk 0:02:44]}  O-O {[%clk 0:03:03]} 10. Bf4 {[%clk 0:02:38]}  a6 {[%clk 0:03:02]} 11. Rad1 {[%clk 0:02:37]}  Qa5 {[%clk 0:02:59]} 12. d4 {[%clk 0:02:28]}  Bd7 {[%clk 0:02:17]} 13. dxc5 {[%clk 0:02:17]}  Bxc5 {[%clk 0:01:40]} 14. Ne5 {[%clk 0:02:09]}  Rfd8 {[%clk 0:01:28]} 15. Nc4 {[%clk 0:01:34]}  Bxf2+ {[%clk 0:00:28]} 16. Rxf2 {[%clk 0:01:28]}  Qc5 {[%clk 0:00:26]} 17. Bd6 {[%clk 0:01:16]} 1-0


[Site "https://www.chess.com"]

[Event "Titled Tuesday Blitz May 17 Early 2022"]
[White "Chigaev, Maksim"]
[Black "Shipov, Sergei"]
[WhiteFideId "4108116"]
[BlackFideId "4113624"]
[WhiteElo "2457"]
[BlackElo "2780"]
[Result "0-1"]
[Round "08"]
[TimeControl "180+1"]
[Date "2022.05.17"]
[WhiteClock "0:00:01"]
[BlackClock "0:01:11"]

1. Nf3 {[%clk 0:03:00]}  d5 {[%clk 0:02:57]} 2. c4 {[%clk 0:03:01]}  e6 {[%clk 0:02:57]} 3. g3 {[%clk 0:02:59]}  dxc4 {[%clk 0:02:56]} 4. Qa4+ {[%clk 0:02:57]}  c6 {[%clk 0:02:57]} 5. Qxc4 {[%clk 0:02:57]}  b5 {[%clk 0:02:57]} 6. Qb3 {[%clk 0:02:58]}  Bb7 {[%clk 0:02:58]} 7. Bg2 {[%clk 0:02:58]}  Nd7 {[%clk 0:02:58]} 8. O-O {[%clk 0:02:58]}  a6 {[%clk 0:02:58]} 9. d4 {[%clk 0:02:58]}  c5 {[%clk 0:02:58]} 10. Rd1 {[%clk 0:02:57]}  Ngf6 {[%clk 0:02:57]} 11. a4 {[%clk 0:02:48]}  c4 {[%clk 0:02:57]} 12. Qc2 {[%clk 0:02:48]}  Be7 {[%clk 0:02:57]} 13. Bg5 {[%clk 0:02:39]}  O-O {[%clk 0:02:56]} 14. Nbd2 {[%clk 0:02:39]}  Qb6 {[%clk 0:02:50]} 15. Ne5 {[%clk 0:02:34]}  Rad8 {[%clk 0:02:43]} 16. Nxd7 {[%clk 0:02:23]}  Rxd7 {[%clk 0:02:42]} 17. Bxb7 {[%clk 0:01:45]}  Qxb7 {[%clk 0:02:42]} 18. axb5 {[%clk 0:01:46]}  axb5 {[%clk 0:02:42]} 19. Nf3 {[%clk 0:01:42]}  Rfd8 {[%clk 0:02:33]} 20. b3 {[%clk 0:01:23]}  cxb3 {[%clk 0:02:24]} 21. Qxb3 {[%clk 0:01:24]}  h6 {[%clk 0:02:24]} 22. Bf4 {[%clk 0:01:06]}  b4 {[%clk 0:02:20]} 23. Rdc1 {[%clk 0:01:01]}  Qe4 {[%clk 0:01:50]} 24. Be3 {[%clk 0:00:34]}  Ng4 {[%clk 0:01:33]} 25. Rab1 {[%clk 0:00:31]}  Rb7 {[%clk 0:01:16]} 26. Nd2 {[%clk 0:00:12]}  Qf5 {[%clk 0:01:14]} 27. Nc4 {[%clk 0:00:12]}  Qh5 {[%clk 0:01:13]} 28. h4 {[%clk 0:00:11]}  Bxh4 {[%clk 0:01:11]} 29. gxh4 {[%clk 0:00:11]}  Qxh4 {[%clk 0:01:11]} 30. f3 {[%clk 0:00:01]}  Qg3+ {[%clk 0:01:11]} 0-1


[Site "https://www.chess.com"]